fUSD/lending_fUSD_20250105
["ID","MTS","AMOUNT","RATE_DAILY","PERIOD"]
[347769742,1736097060524,-500.0,0.00010133,2]
[347769743,1736097060534,-500.0,0.00010133,2]
[347769744,1736097060543,-500.0,0.00010133,2]
[347769745,1736097060553,-601.32,0.00010133,2]
[347769746,1736097060563,-571.88,0.00010133,2]
[347769747,1736097060573,-664.87,0.00010133,2]
[347769748,1736097060582,-536.69,0.00010133,2]
[347769749,1736097060592,-500.0,0.00010133,2]
[347769750,1736097060602,-500.0,0.00010133,2]
[347769751,1736097060612,-500.0,0.00010133,2]
[347769752,1736097060622,-500.0,0.00010133,2]
[347769753,1736097060631,-500.0,0.00010133,2]
[347769754,1736097060642,-500.0,0.00010133,2]
[347769755,1736097060652,-500.0,0.00010133,2]
[347769756,1736097060662,-370.6,0.00010133,2]
[347769757,1736097060672,-578.14,0.00010133,2]
[347769758,1736097060682,-500.0,0.00010133,2]
[347769759,1736097060692,-500.0,0.00010133,2]
[347769760,1736097060702,-633.35,0.00010133,2]
[347769761,1736097060712,-578.17,0.00010133,2]
[347769762,1736097060722,-500.0,0.00010133,2]
[347769763,1736097060732,-500.0,0.00010133,2]
[347769764,1736097060741,-700.08,0.00010133,2]
[347769765,1736097060751,-500.0,0.00010133,2]
[347769766,1736097060762,-500.0,0.00010133,2]
[347769767,1736097060771,-500.0,0.00010133,2]
[347769768,1736097060782,-794.97,0.00010133,2]
[347769769,1736097060792,-500.0,0.00010133,2]
[347769770,1736097060802,-500.0,0.00010133,2]
[347769771,1736097060812,-599.09,0.00010133,2]
[347769772,1736097060824,-500.0,0.00010133,2]
[347769773,1736097060833,-762.48,0.00010133,2]
[347769774,1736097060843,-508.75,0.00010133,2]
[347769775,1736097060854,-500.0,0.00010133,2]
[347769776,1736097060863,-1755.58,0.00010134,2]
[347769777,1736097060874,-360.68289126,0.00010134,2]
[347769778,1736097060884,-638.89,0.00010134,2]
[347769779,1736097060894,-2164.95,0.00010134,2]
[347769780,1736097060904,-1234.8,0.00010134,2]
[347769781,1736097060914,-500.0,0.00010134,2]
[347769782,1736097060923,-500.0,0.00010134,2]
[347769783,1736097060933,-756.66,0.00010134,2]
[347769784,1736097060943,-500.0,0.00010134,2]
[347769785,1736097060953,-1099.05,0.00010134,2]
[347769786,1736097060963,-500.0,0.00010134,2]
[347769787,1736097060973,-500.0,0.00010134,2]
[347769788,1736097060983,-500.0,0.00010134,2]
[347769789,1736097060993,-993.51,0.00010134,2]
[347769790,1736097061002,-500.0,0.00010134,2]
[347769791,1736097061012,-500.0,0.00010134,2]
[347769792,1736097061022,-928.38,0.00010134,2]
[347769793,1736097061031,-651.19,0.00010134,2]
[347769794,1736097061041,-1569.04,0.00010134,2]
[347769795,1736097061051,-1414.11,0.00010134,2]
[347769796,1736097061061,-1755.76,0.00010134,2]
[347769797,1736097061071,-553.42,0.00010134,2]
[347769798,1736097061082,-1658.3,0.00010134,2]
[347769799,1736097061092,-882.25,0.00010134,2]
[347769800,1736097061102,-1011.32,0.00010134,2]
[347769801,1736097061112,-500.0,0.00010134,2]
[347769802,1736097061122,-1576.63,0.00010134,2]
[347769803,1736097061132,-932.16,0.00010136,2]
[347769804,1736097061142,-2115.73,0.00010136,2]
[347769805,1736097061151,-500.0,0.00010136,2]
[347769806,1736097061161,-698.78,0.00010136,2]
[347769807,1736097061172,-1025.34,0.00010136,2]
[347769808,1736097061182,-1102.24,0.00010136,2]
[347769809,1736097061192,-1679.0,0.00010136,2]
[347769810,1736097061202,-1000.0,0.00010136,2]
[347769811,1736097061212,-602.76,0.00010136,2]
[347769812,1736097061222,-664.85,0.00010136,2]
[347769813,1736097061232,-2237.39,0.00010136,2]
[347769814,1736097061243,-1629.25,0.00010136,2]
[347769815,1736097061252,-961.74,0.00010136,2]
[347769816,1736097061262,-2872.77,0.00010136,2]
[347769817,1736097061272,-757.54,0.00010136,2]
[347769818,1736097061282,-500.0,0.00010136,2]
[347769819,1736097061293,-1689.38,0.00010136,2]
[347769820,1736097061303,-582.28,0.00010136,2]
[347769821,1736097061314,-500.0,0.00010136,2]
[347769822,1736097061325,-500.0,0.00010136,2]
[347769823,1736097061335,-811.88,0.00010136,2]
[347769824,1736097061346,-500.0,0.00010136,2]
[347769825,1736097061356,-1525.05,0.00010136,2]
[347769826,1736097061365,-758.87,0.00010136,2]
[347769827,1736097061378,-684.2,0.00010136,2]
[347769828,1736097061389,-976.33,0.00010136,2]
[347769829,1736097061400,-1024.5,0.00010136,2]
[347769830,1736097061412,-500.0,0.00010136,2]
[347769831,1736097061422,-897.75,0.00010136,2]
[347769832,1736097061433,-2270.81,0.00010136,2]
[347769833,1736097061444,-750.4,0.00010136,2]
[347769834,1736097061455,-500.0,0.00010136,2]
[347769835,1736097061467,-742.21,0.00010136,2]
[347769836,1736097061477,-500.0,0.00010136,2]
[347769837,1736097061487,-1133.82,0.00010136,2]
[347769838,1736097061497,-500.0,0.00010136,2]
[347769839,1736097061507,-1920.27,0.00010136,2]
[347769840,1736097061516,-1649.11,0.00010136,2]
[347769841,1736097061526,-623.15,0.00010136,2]
[347769842,1736097061536,-5221.52,0.00010136,2]
[347769843,1736097061546,-500.0,0.00010136,2]
[347769844,1736097061556,-807.93,0.00010136,2]
[347769845,1736097061566,-944.44,0.00010136,2]
[347769846,1736097061576,-474.02963082,0.00010136,2]
[347769847,1736097061586,-1132.59,0.00010136,2]
[347769848,1736097061596,-916.71,0.00010136,2]
[347769849,1736097061606,-1292.44,0.00010136,2]
[347769850,1736097061616,-500.0,0.00010136,2]
[347769851,1736097061627,-552.81,0.00010136,2]
[347769852,1736097061637,-866.28,0.00010136,2]
[347769853,1736097061647,-500.0,0.00010136,2]
[347769854,1736097061657,-1620.35,0.00010136,2]
[347769855,1736097061667,-436.13938767,0.00010136,2]
[347769856,1736097061677,-1543.6,0.00010136,2]
[347769857,1736097061686,-500.0,0.00010136,2]
[347769858,1736097061696,-998.68,0.00010136,2]
[347769859,1736097061707,-728.39,0.00010136,2]
[347769860,1736097061716,-500.0,0.00010136,2]
[347769861,1736097061726,-500.0,0.00010136,2]
[347769862,1736097061736,-152.86,0.00010137,2]
[347769863,1736097061746,-1500.0,0.00010187,2]
[347769864,1736097061756,-1000.0,0.00010199,2]
[347769865,1736097061766,-608.97,0.00010234,2]
[347769866,1736097061776,-500.0,0.00010234,2]
[347769867,1736097061787,-500.0,0.00010234,2]
[347769868,1736097061796,-500.0,0.00010234,2]
[347769869,1736097061807,-500.0,0.00010234,2]
[347769870,1736097061817,-500.0,0.00010234,2]
[347769871,1736097061826,-500.0,0.00010234,2]
[347769872,1736097061837,-194.22380089,0.00010234,2]
[347769873,1736097061848,-500.0,0.00010234,2]
[347769874,1736097061858,-500.0,0.00010234,2]
[347769875,1736097061868,-500.0,0.00010234,2]
[347769876,1736097061878,-500.0,0.00010234,2]
[347769877,1736097061889,-562.79,0.00010234,2]
[347769878,1736097061899,-500.0,0.00010234,2]
[347769879,1736097061909,-731.72,0.00010234,2]
[347769880,1736097061920,-500.0,0.00010234,2]
[347769881,1736097061930,-500.0,0.00010234,2]
[347769882,1736097061940,-500.0,0.00010234,2]
[347769883,1736097061952,-500.0,0.00010234,2]
[347769884,1736097061964,-500.0,0.00010234,2]
[347769885,1736097061976,-500.0,0.00010234,2]
[347769886,1736097061987,-500.0,0.00010234,2]
[347769887,1736097061997,-523.24,0.00010234,2]
[347769888,1736097062007,-500.0,0.00010234,2]
[347769889,1736097062017,-500.0,0.00010234,2]
[347769890,1736097062027,-500.0,0.00010234,2]
[347769891,1736097062037,-535.44060751,0.00010234,2]
[347769892,1736097062048,-500.0,0.00010234,2]
[347769893,1736097062059,-500.0,0.00010234,2]
[347769894,1736097062069,-500.0,0.00010234,2]
[347769895,1736097062080,-500.0,0.00010234,2]
[347769896,1736097062089,-500.0,0.00010234,2]
[347769897,1736097062100,-500.0,0.00010234,2]
[347769898,1736097062111,-500.0,0.00010234,2]
[347769899,1736097062122,-500.0,0.00010234,2]
[347769900,1736097062133,-335.36331139,0.00010234,2]
[347769901,1736097062143,-619.97,0.00010234,2]
[347769902,1736097062154,-500.0,0.00010234,2]
[347769903,1736097062165,-500.0,0.00010234,2]
[347769904,1736097062175,-500.0,0.00010234,2]
[347769905,1736097062186,-500.0,0.00010234,2]
[347769906,1736097062197,-500.0,0.00010234,2]
[347769907,1736097062207,-500.0,0.00010234,2]
[347769908,1736097062218,-500.0,0.00010234,2]
[347769909,1736097062228,-500.0,0.00010234,2]
[347769910,1736097062238,-839.47,0.00010234,2]
[347769911,1736097062248,-500.0,0.00010234,2]
[347769912,1736097062259,-1901.86,0.00010234,2]
[347769913,1736097062270,-500.0,0.00010234,2]
[347769914,1736097062281,-1121.33,0.00010234,2]
[347769915,1736097062291,-500.0,0.00010234,2]
[347769916,1736097062301,-500.0,0.00010234,2]
[347769917,1736097062311,-500.0,0.00010234,2]
[347769918,1736097062322,-500.0,0.00010234,2]
[347769919,1736097062332,-500.0,0.00010234,2]
[347769920,1736097062343,-435.33067845,0.00010234,2]
[347769921,1736097062353,-500.0,0.00010234,2]
[347769922,1736097062364,-500.0,0.00010234,2]
[347769923,1736097062379,-500.0,0.00010234,2]
[347769924,1736097062390,-2372.38,0.00010234,2]
[347769925,1736097062401,-500.0,0.00010234,2]
[347769926,1736097062412,-500.0,0.00010234,2]
[347769927,1736097062422,-652.09,0.00010234,2]
[347769928,1736097062433,-500.0,0.00010234,2]
[347769929,1736097062444,-543.86,0.00010234,2]
[347769930,1736097062455,-340.73134109,0.00010234,2]
[347769931,1736097062465,-500.0,0.00010234,2]
[347769932,1736097062476,-500.0,0.00010234,2]
[347769933,1736097062487,-947.45,0.00010234,2]
[347769934,1736097062497,-500.0,0.00010234,2]
[347769935,1736097062509,-500.0,0.00010234,2]
[347769936,1736097062520,-500.0,0.00010234,2]
[347769937,1736097062531,-654.0,0.00010234,2]
[347769938,1736097062542,-500.0,0.00010234,2]
[347769939,1736097062553,-228.23,0.00010234,2]
[347769940,1736097062563,-500.0,0.00010234,2]
[347769941,1736097062576,-500.0,0.00010234,2]
[347769942,1736097062786,-528.09,0.00010234,2]
[347769943,1736097062796,-500.0,0.00010234,2]
[347769944,1736097062806,-500.0,0.00010234,2]
[347769945,1736097062816,-524.44,0.00010234,2]
[347769946,1736097062827,-500.0,0.00010234,2]
[347769947,1736097062837,-500.0,0.00010234,2]
[347769948,1736097062847,-500.0,0.00010234,2]
[347769949,1736097062856,-500.0,0.00010234,2]
[347769950,1736097062865,-500.0,0.00010234,2]
[347769951,1736097062875,-1098.73,0.00010234,2]
[347769952,1736097062885,-160.12,0.00010234,2]
[347769953,1736097062895,-500.0,0.00010234,2]
[347769954,1736097062905,-500.0,0.00010234,2]
[347769955,1736097062915,-500.0,0.00010234,2]
[347769956,1736097062925,-560.86,0.00010234,2]
[347769957,1736097062934,-500.0,0.00010234,2]
[347769958,1736097062943,-500.0,0.00010234,2]
[347769959,1736097062953,-500.0,0.00010234,2]
[347769960,1736097062963,-1000.0,0.00010274,2]
[347769961,1736097062972,-2149.39,0.00010382,2]
[347769962,1736097062981,-1680.12,0.00010406,2]
[347769963,1736097062991,-766.138512,0.00010406,2]
[347769964,1736097063000,-704.48,0.00010406,2]
[347769965,1736097063010,-587.805649,0.00010406,2]
[347769966,1736097063019,-500.0,0.00010406,2]
[347769967,1736097063029,-500.0,0.00010406,2]
[347769968,1736097063040,-1780.51,0.00010406,2]
[347769969,1736097063050,-961.56,0.00010406,2]
[347769970,1736097063059,-905.19,0.00010406,2]
[347769971,1736097063070,-891.51,0.00010406,2]
[347769972,1736097063080,-1030.69,0.00010406,2]
[347769973,1736097063091,-1399.36,0.00010406,2]
[347769974,1736097063101,-155.612781,0.00010406,2]
[347769975,1736097063111,-594.48,0.00010406,2]
[347769976,1736097063122,-832.4,0.00010406,2]
[347769977,1736097063131,-553.05,0.00010407,2]
[347769978,1736097063141,-558.34,0.00010407,2]
[347769979,1736097063151,-500.0,0.00010407,2]
[347769980,1736097063161,-500.0,0.00010407,2]
[347769981,1736097063171,-500.0,0.00010407,2]
[347769982,1736097063181,-172.3345512,0.00010407,2]
[347769983,1736097063191,-414.45558137,0.00010407,2]
[347769984,1736097063201,-494.07,0.00010407,2]
[347769985,1736097063210,-500.0,0.00010407,2]
[347769986,1736097063219,-500.0,0.00010407,2]
[347769987,1736097063231,-500.0,0.00010407,2]
[347769988,1736097063241,-500.0,0.00010407,2]
[347769989,1736097063251,-500.0,0.00010407,2]
[347769990,1736097063261,-700.88,0.00010407,2]
[347769991,1736097063271,-556.79,0.00010407,2]
[347769992,1736097063282,-500.0,0.00010407,2]
[347769993,1736097063292,-500.0,0.00010407,2]
[347769994,1736097063302,-500.0,0.00010407,2]
[347769995,1736097063312,-500.0,0.00010407,2]
[347769996,1736097063321,-500.0,0.00010407,2]
[347769997,1736097063331,-601.32,0.00010407,2]
[347769998,1736097063341,-571.88,0.00010407,2]
[347769999,1736097063351,-664.87,0.00010407,2]
[347770000,1736097063361,-536.69,0.00010407,2]
[347770001,1736097063371,-500.0,0.00010407,2]
[347770002,1736097063385,-500.0,0.00010407,2]
[347770003,1736097063396,-536.21204512,0.00010407,2]
[347770004,1736097063407,-500.0,0.00010407,2]
[347770005,1736097063418,-500.0,0.00010407,2]
[347770006,1736097063428,-500.0,0.00010407,2]
[347770007,1736097063438,-500.0,0.00010407,2]
[347770008,1736097063450,-578.14,0.00010407,2]
[347770009,1736097063461,-500.0,0.00010407,2]
[347770010,1736097063471,-500.0,0.00010407,2]
[347770011,1736097063481,-633.35,0.00010407,2]
[347770012,1736097063492,-578.17,0.00010407,2]
[347770013,1736097063503,-500.0,0.00010407,2]
[347770014,1736097063515,-500.0,0.00010407,2]
[347770015,1736097063526,-700.08,0.00010407,2]
[347770016,1736097063537,-500.0,0.00010407,2]
[347770017,1736097063548,-500.0,0.00010407,2]
[347770018,1736097063558,-500.0,0.00010407,2]
[347770019,1736097063569,-794.97,0.00010407,2]
[347770020,1736097063580,-500.0,0.00010407,2]
[347770021,1736097063591,-500.0,0.00010407,2]
[347770022,1736097063602,-599.09,0.00010407,2]
[347770023,1736097063613,-500.0,0.00010407,2]
[347770024,1736097063623,-762.48,0.00010407,2]
[347770025,1736097063634,-508.75,0.00010407,2]
[347770026,1736097063645,-500.0,0.00010407,2]
[347770027,1736097063655,-1755.58,0.00010408,2]
[347770028,1736097063665,-638.89,0.00010408,2]
[347770029,1736097063675,-2164.95,0.00010408,2]
[347770030,1736097063685,-1234.8,0.00010408,2]
[347770031,1736097063697,-500.0,0.00010408,2]
[347770032,1736097063707,-564.8814188,0.00010408,2]
[347770033,1736097063718,-756.66,0.00010408,2]
[347770034,1736097063728,-500.0,0.00010408,2]
[347770035,1736097063739,-1099.05,0.00010408,2]
[347770036,1736097063749,-500.0,0.00010408,2]
[347770037,1736097063759,-500.0,0.00010408,2]
[347770038,1736097063770,-500.0,0.00010408,2]
[347770039,1736097063780,-993.51,0.00010408,2]
[347770040,1736097063790,-500.0,0.00010408,2]
[347770041,1736097063800,-500.0,0.00010408,2]
[347770042,1736097063810,-928.38,0.00010408,2]
[347770043,1736097063820,-651.19,0.00010408,2]
[347770044,1736097063830,-1569.04,0.00010408,2]
[347770045,1736097063840,-1414.11,0.00010408,2]
[347770046,1736097063850,-1755.76,0.00010408,2]
[347770047,1736097063861,-553.42,0.00010408,2]
[347770048,1736097063872,-1658.3,0.00010408,2]
[347770049,1736097063882,-882.25,0.00010408,2]
[347770050,1736097063892,-1011.32,0.00010408,2]
[347770051,1736097063903,-500.0,0.00010408,2]
[347770052,1736097063912,-1576.63,0.00010408,2]
[347770053,1736097063919,-932.16,0.0001041,2]
[347770054,1736097063927,-2115.73,0.0001041,2]
[347770055,1736097063937,-500.0,0.0001041,2]
[347770056,1736097063947,-698.78,0.0001041,2]
[347770057,1736097063957,-1025.34,0.0001041,2]
[347770058,1736097063967,-1102.24,0.0001041,2]
[347770059,1736097063977,-1679.0,0.0001041,2]
[347770060,1736097063987,-1000.0,0.0001041,2]
[347770061,1736097063999,-602.76,0.0001041,2]
[347770062,1736097064009,-664.85,0.0001041,2]
[347770063,1736097064019,-2237.39,0.0001041,2]
[347770064,1736097064030,-1629.25,0.0001041,2]
[347770065,1736097064040,-961.74,0.0001041,2]
[347770066,1736097064050,-2872.77,0.0001041,2]
[347770067,1736097064060,-757.54,0.0001041,2]
[347770068,1736097064071,-500.0,0.0001041,2]
[347770069,1736097064081,-1614.6443341,0.0001041,2]
[347770070,1736097064134,-74.7356659,0.0001041,2]
[347770071,1736097064145,-363.0422719,0.0001041,2]
[347770072,1736097064172,-219.2377281,0.0001041,2]
[347770073,1736097064182,-500.0,0.0001041,2]
[347770074,1736097064192,-500.0,0.0001041,2]
[347770075,1736097064203,-731.9255211,0.0001041,2]
[347770076,1736097064215,-79.9544789,0.0001041,2]
[347770077,1736097064226,-268.93562314,0.0001041,2]
[347770078,1736097064239,-231.06437686,0.0001041,2]
[347770079,1736097064249,-1525.05,0.0001041,2]
[347770080,1736097064260,-758.87,0.0001041,2]
[347770081,1736097064271,-684.2,0.0001041,2]
[347770082,1736097064281,-976.33,0.0001041,2]
[347770083,1736097064292,-665.20610102,0.0001041,2]
[347770084,1736097065478,-500.0,8.492e-05,2]
[347770085,1736097065488,-628.67,8.492e-05,2]
[347770086,1736097065497,-500.0,8.492e-05,2]
[347770087,1736097065507,-500.0,8.59e-05,2]
[347770088,1736097065517,-1252.55978117,8.766e-05,2]
[347770089,1736097065534,-282.14021883,8.766e-05,2]
[347770090,1736097065543,-500.0,8.766e-05,2]
[347770091,1736097065553,-500.0,8.864e-05,2]
[347770092,1736097065562,-1534.7,9.04e-05,2]
[347770093,1736097065572,-500.0,9.04e-05,2]
[347770094,1736097065583,-500.0,9.138e-05,2]
[347770095,1736097065593,-715.86,9.314e-05,2]
[347770096,1736097065602,-1534.7,9.314e-05,2]
[347770097,1736097065611,-500.0,9.314e-05,2]
[347770098,1736097065620,-500.0,9.412e-05,2]
[347770099,1736097065630,-715.86,9.588e-05,2]
[347770100,1736097065640,-1534.7,9.588e-05,2]
[347770101,1736097065649,-500.0,9.588e-05,2]
[347770102,1736097065659,-500.0,9.686e-05,2]
[347770103,1736097065668,-500.0,9.686e-05,2]
[347770104,1736097065677,-715.86,9.862e-05,2]
[347770105,1736097065686,-1534.7,9.862e-05,2]
[347770106,1736097065696,-500.0,9.862e-05,2]
[347770107,1736097065705,-500.0,9.96e-05,2]
[347770108,1736097065715,-715.86,0.00010136,2]
[347770109,1736097065725,-1534.7,0.00010136,2]
[347770110,1736097065735,-500.0,0.00010136,2]
[347770111,1736097065744,-500.0,0.00010234,2]
[347770112,1736097065753,-500.0,0.0001041,2]
[347770113,1736097065762,-897.75,0.0001041,2]
[347770114,1736097065772,-2270.81,0.0001041,2]
[347770115,1736097065782,-750.4,0.0001041,2]
[347770116,1736097065791,-500.0,0.0001041,2]
[347770117,1736097065801,-742.21,0.0001041,2]
[347770118,1736097065810,-500.0,0.0001041,2]
[347770119,1736097065819,-1133.82,0.0001041,2]
[347770120,1736097065829,-500.0,0.0001041,2]
[347770121,1736097065839,-1920.27,0.0001041,2]
[347770122,1736097065848,-1649.11,0.0001041,2]
[347770123,1736097065857,-623.15,0.0001041,2]
[347770124,1736097065867,-5221.52,0.0001041,2]
[347770125,1736097065877,-500.0,0.0001041,2]
[347770126,1736097065886,-944.44,0.0001041,2]
[347770127,1736097065896,-1132.59,0.0001041,2]
[347770128,1736097065908,-916.71,0.0001041,2]
[347770129,1736097065917,-1292.44,0.0001041,2]
[347770130,1736097065926,-500.0,0.0001041,2]
[347770131,1736097065936,-552.81,0.0001041,2]
[347770132,1736097065945,-500.0,0.0001041,2]
[347770133,1736097065954,-1620.35,0.0001041,2]
[347770134,1736097065964,-1543.6,0.0001041,2]
[347770135,1736097065973,-500.0,0.0001041,2]
[347770136,1736097065983,-998.68,0.0001041,2]
[347770137,1736097065993,-728.39,0.0001041,2]
[347770138,1736097066002,-228.42390276,0.0001041,2]
[347770139,1736097066012,-500.0,0.0001041,2]
[347770140,1736097066021,-715.86,0.0001041,2]
[347770141,1736097066031,-1534.7,0.0001041,2]
[347770142,1736097066040,-500.0,0.0001041,2]
[347770143,1736097066049,-500.0,0.00010442,2]
[347770144,1736097066059,-1300.0,0.00010442,2]
[347770145,1736097066068,-29999.99,0.00010475,2]
[347770146,1736097066079,-6693.81,0.00010475,2]
[347770147,1736097066089,-608.97,0.00010508,2]
[347770148,1736097066098,-500.0,0.00010508,2]
[347770149,1736097066108,-500.0,0.00010508,2]
[347770150,1736097066118,-500.0,0.00010508,2]
[347770151,1736097066127,-500.0,0.00010508,2]
[347770152,1736097066137,-500.0,0.00010508,2]
[347770153,1736097066146,-500.0,0.00010508,2]
[347770154,1736097066156,-500.0,0.00010508,2]
[347770155,1736097066166,-500.0,0.00010508,2]
[347770156,1736097066176,-500.0,0.00010508,2]
[347770157,1736097066185,-316.87,0.00010508,2]
[347770158,1736097066195,-500.0,0.00010508,2]
[347770159,1736097066204,-731.72,0.00010508,2]
[347770160,1736097066214,-500.0,0.00010508,2]
[347770161,1736097066224,-500.0,0.00010508,2]
[347770162,1736097066233,-500.0,0.00010508,2]
[347770163,1736097066242,-229.18331862,0.00010508,2]
[347770164,1736097066252,-500.0,0.00010508,2]
[347770165,1736097066262,-500.0,0.00010508,2]
[347770166,1736097066271,-607.48713749,0.00010508,2]
[347770167,1736097066280,-523.24,0.00010508,2]
[347770168,1736097066290,-500.0,0.00010508,2]
[347770169,1736097066299,-500.0,0.00010508,2]
[347770170,1736097066308,-500.0,0.00010508,2]
[347770171,1736097066318,-500.0,0.00010508,2]
[347770172,1736097066328,-500.0,0.00010508,2]
[347770173,1736097066338,-500.0,0.00010508,2]
[347770174,1736097066347,-500.0,0.00010508,2]
[347770175,1736097066356,-500.0,0.00010508,2]
[347770176,1736097066365,-500.0,0.00010508,2]
[347770177,1736097066375,-500.0,0.00010508,2]
[347770178,1736097066385,-500.0,0.00010508,2]
[347770179,1736097066395,-619.97,0.00010508,2]
[347770180,1736097066405,-500.0,0.00010508,2]
[347770181,1736097066415,-500.0,0.00010508,2]
[347770182,1736097066426,-500.0,0.00010508,2]
[347770183,1736097066436,-500.0,0.00010508,2]
[347770184,1736097066445,-500.0,0.00010508,2]
[347770185,1736097066456,-500.0,0.00010508,2]
[347770186,1736097066466,-500.0,0.00010508,2]
[347770187,1736097066475,-500.0,0.00010508,2]
[347770188,1736097066485,-839.47,0.00010508,2]
[347770189,1736097066495,-500.0,0.00010508,2]
[347770190,1736097066504,-500.0,0.00010508,2]
[347770191,1736097066514,-1121.33,0.00010508,2]
[347770192,1736097066522,-500.0,0.00010508,2]
[347770193,1736097066532,-500.0,0.00010508,2]
[347770194,1736097066541,-500.0,0.00010508,2]
[347770195,1736097066552,-500.0,0.00010508,2]
[347770196,1736097066561,-500.0,0.00010508,2]
[347770197,1736097066571,-500.0,0.00010508,2]
[347770198,1736097066580,-500.0,0.00010508,2]
[347770199,1736097066590,-500.0,0.00010508,2]
[347770200,1736097066599,-2372.38,0.00010508,2]
[347770201,1736097066609,-500.0,0.00010508,2]
[347770202,1736097066619,-500.0,0.00010508,2]
[347770203,1736097066628,-652.09,0.00010508,2]
[347770204,1736097066638,-247.53847709,0.00010508,2]
[347770205,1736097066648,-500.0,0.00010508,2]
[347770206,1736097066658,-947.45,0.00010508,2]
[347770207,1736097066667,-500.0,0.00010508,2]
[347770208,1736097066678,-500.0,0.00010508,2]
[347770209,1736097066688,-500.0,0.00010508,2]
[347770210,1736097066698,-500.0,0.00010508,2]
[347770211,1736097066708,-654.0,0.00010508,2]
[347770212,1736097066717,-500.0,0.00010508,2]
[347770213,1736097066727,-500.0,0.00010508,2]
[347770214,1736097066736,-500.0,0.00010508,2]
[347770215,1736097066746,-528.09,0.00010508,2]
[347770216,1736097066756,-500.0,0.00010508,2]
[347770217,1736097066765,-500.0,0.00010508,2]
[347770218,1736097066775,-500.0,0.00010508,2]
[347770219,1736097066785,-419.98,0.00010508,2]
[347770220,1736097066795,-500.0,0.00010508,2]
[347770221,1736097066804,-500.0,0.00010508,2]
[347770222,1736097066814,-204.1,0.00010508,2]
[347770223,1736097066824,-1098.73,0.00010508,2]
[347770224,1736097066833,-629.48,0.00010508,2]
[347770225,1736097066843,-500.0,0.00010508,2]
[347770226,1736097066854,-500.0,0.00010508,2]
[347770227,1736097066864,-560.86,0.00010508,2]
[347770228,1736097066873,-421.98,0.00010508,2]
[347770229,1736097066883,-500.0,0.00010508,2]
[347770230,1736097066893,-500.0,0.00010508,2]
[347770231,1736097066902,-500.0,0.00010508,2]
[347770232,1736097066912,-1680.12,0.0001068,2]
[347770233,1736097066922,-766.138512,0.0001068,2]
[347770234,1736097066931,-704.48,0.0001068,2]
[347770235,1736097066941,-587.805649,0.0001068,2]
[347770236,1736097066951,-500.0,0.0001068,2]
[347770237,1736097066961,-500.0,0.0001068,2]
[347770238,1736097066970,-1780.51,0.0001068,2]
[347770239,1736097066980,-961.56,0.0001068,2]
[347770240,1736097066990,-905.19,0.0001068,2]
[347770241,1736097067000,-891.51,0.0001068,2]